bitfinex/quotes_SOLUSD_20241102
["timestamp","ask_amount","ask_price","bid_price","bid_amount"]
[1730588486858,59.42202067,165.88,165.87,0.304729]
[1730588487247,35.64513667,165.88,165.87,0.304729]
[1730588487562,24.4921929,165.88,165.87,0.304729]
[1730588488963,35.64513667,165.88,165.87,0.304729]
[1730588489650,41.67353667,165.88,165.87,0.304729]
[1730588491059,41.67317221,165.88,165.87,0.304729]
[1730588491748,65.45005621,165.88,165.87,0.304729]
[1730588492632,65.4491899,165.88,165.87,0.304729]
[1730588498073,65.44633006,165.88,165.87,0.304729]
[1730588501348,65.4434649,165.88,165.87,0.304729]
[1730588501550,60.95822777,165.88,165.87,0.304729]
[1730588501757,65.44343991,165.88,165.87,0.304729]
[1730588505678,65.44185574,165.88,165.87,0.304729]
[1730588508778,65.44104104,165.88,165.87,0.304729]
[1730588512252,65.44127208,165.88,165.87,0.304729]
[1730588515284,4.48304431,165.88,165.87,0.304729]
[1730588515657,17.18104377,165.89,165.87,0.304729]
[1730588515875,4.4831668,165.88,165.87,0.304729]
[1730588516154,4.4831668,165.88,165.87,6.333529]
[1730588517480,4.4831668,165.88,165.87,0.304729]
[1730588519186,4.48397847,165.88,165.87,0.304729]
[1730588521778,11.15294377,165.9,165.87,0.304729]
[1730588521982,4.48475571,165.89,165.87,0.304729]
[1730588522191,4.48475571,165.88,165.87,0.304729]
[1730588523561,41.76609948,165.88,165.87,0.304729]
[1730588523766,65.54298348,165.88,165.87,0.304729]
[1730588523974,65.64298348,165.88,165.87,0.304729]
[1730588525388,65.64190037,165.88,165.87,0.304729]
[1730588525586,65.44190037,165.88,165.87,0.304729]
[1730588527169,41.66501637,165.88,165.87,0.304729]
[1730588528886,41.66444224,165.88,165.87,0.304729]
[1730588530995,0.2,165.86,165.79,16.666829]
[1730588531171,11.15294377,165.8,165.79,16.666829]
[1730588531373,15.63604224,165.8,165.79,16.666829]
[1730588532090,15.63471347,165.8,165.79,16.666829]
[1730588533165,4.4817697,165.8,165.79,16.666829]
[1730588533371,11.15294377,165.83,165.79,16.666829]
[1730588533696,4.48153954,165.82,165.79,16.666829]
[1730588533882,4.48153954,165.81,165.79,16.666829]
[1730588534083,11.15294377,165.83,165.79,16.666829]
[1730588534390,15.63474585,165.82,165.79,16.666829]
[1730588534594,4.48180208,165.81,165.79,16.666829]
[1730588534773,11.15294377,165.82,165.79,16.666829]
[1730588534975,4.48173717,165.81,165.79,16.666829]
[1730588535178,4.48173717,165.81,165.79,0.304729]
[1730588535179,4.48188442,165.8,165.79,0.304729]
[1730588535492,11.15294377,165.81,165.79,0.304729]
[1730588535692,4.48133767,165.8,165.79,0.304729]
[1730588538403,41.66558144,165.8,165.79,0.304729]
[1730588539076,41.66458983,165.8,165.79,0.304729]
[1730588539497,69.92088644,165.8,165.79,0.304729]
[1730588539790,65.44054038,165.8,165.79,0.304729]
[1730588540184,65.54054038,165.8,165.79,0.304729]
[1730588540390,65.44054038,165.8,165.79,0.304729]
[1730588542604,65.43775582,165.8,165.79,0.304729]
[1730588544401,69.01699201,165.8,165.79,0.304729]
[1730588545900,69.01699201,165.8,165.71,15.0476]
[1730588545901,43.776884,165.79,165.71,15.0476]
[1730588546081,11.15294377,165.73,165.71,15.0476]
[1730588546421,43.776884,165.77,165.71,15.0476]
[1730588546422,11.15294377,165.76,165.71,15.0476]
[1730588546574,21.1097,165.8,165.71,36.1684]
[1730588546775,11.15294377,165.76,165.71,36.1684]
[1730588553306,11.15294377,165.77,165.71,47.32134377]
[1730588556910,17.18534377,165.77,165.71,47.32134377]
[1730588557412,11.15294377,165.78,165.72,11.15294377]
[1730588557592,11.15294377,165.79,165.74,11.15294377]
[1730588558206,11.15294377,165.79,165.73,11.15294377]
[1730588559218,11.15294377,165.79,165.74,21.1173]
[1730588562222,3.57569392,165.78,165.74,21.1173]
[1730588562523,11.15294377,165.79,165.74,21.1173]
[1730588562724,3.57576604,165.78,165.74,21.1173]
[1730588562920,11.15294377,165.79,165.74,21.1173]
[1730588563108,3.57576604,165.78,165.74,21.1173]
[1730588563422,11.15294377,165.79,165.74,21.1173]
[1730588563603,3.57693403,165.78,165.74,21.1173]
[1730588563936,11.15294377,165.78,165.74,21.1173]
[1730588564222,11.15294377,165.79,165.74,21.1173]
[1730588564430,3.57817746,165.78,165.74,21.1173]
[1730588564609,11.15294377,165.79,165.74,21.1173]
[1730588564927,3.57818907,165.78,165.74,21.1173]
[1730588565226,3.57930127,165.77,165.74,21.1173]
[1730588565423,11.15294377,165.79,165.74,21.1173]
[1730588565615,3.57939611,165.78,165.74,21.1173]
[1730588565820,3.57939611,165.77,165.74,21.1173]
[1730588566009,11.15294377,165.78,165.74,21.1173]
[1730588566208,3.579397,165.77,165.74,21.1173]
[1730588566426,11.15294377,165.78,165.74,21.1173]
[1730588566633,3.57950761,165.77,165.74,21.1173]
[1730588566807,11.15294377,165.78,165.74,21.1173]
[1730588567008,3.57963588,165.77,165.74,21.1173]
[1730588567221,11.15294377,165.78,165.74,21.1173]
[1730588568328,22.86959808,165.83,165.74,15.0838]
[1730588568329,11.15294377,165.76,165.74,15.0838]
[1730588568537,11.15294377,165.76,165.72,6.0342]
[1730588568834,3.58287035,165.75,165.72,6.0342]
[1730588569128,11.15294377,165.76,165.72,6.0342]
[1730588569332,3.5849961,165.75,165.72,6.0342]
[1730588569635,11.15294377,165.76,165.72,6.0342]
[1730588569836,3.58500723,165.75,165.72,6.0342]
[1730588570127,11.15294377,165.76,165.72,6.0342]
[1730588570434,3.58531997,165.75,165.72,6.0342]
[1730588570620,11.15294377,165.77,165.72,6.0342]
[1730588570821,3.58530678,165.76,165.72,6.0342]
[1730588571023,3.58530678,165.75,165.72,6.0342]
[1730588571332,11.15294377,165.77,165.72,6.0342]
[1730588571537,3.58548879,165.76,165.72,21.1198]
[1730588571836,3.58548879,165.75,165.72,21.1198]
[1730588572020,11.15294377,165.77,165.72,21.1198]
[1730588572224,3.58544859,165.76,165.72,21.1198]
[1730588572415,3.58544859,165.75,165.72,21.1198]
[1730588572610,3.58544859,165.74,165.72,21.1198]
[1730588572809,3.58571576,165.74,165.72,21.1198]
[1730588573035,11.15294377,165.77,165.72,21.1198]
[1730588573336,3.58571999,165.76,165.72,21.1198]
[1730588573522,3.58571999,165.75,165.72,21.1198]
[1730588573722,3.58571999,165.74,165.72,21.1198]
[1730588574037,11.15294377,165.77,165.72,21.1198]
[1730588574210,3.58623012,165.76,165.72,21.1198]
[1730588574411,3.58623012,165.75,165.72,21.1198]
[1730588574612,3.58623012,165.74,165.72,21.1198]
[1730588574830,11.15294377,165.77,165.72,21.1198]
[1730588575032,3.58710679,165.76,165.72,21.1198]
[1730588575233,3.58710679,165.75,165.72,21.1198]
[1730588575422,3.58710679,165.74,165.72,21.1198]
[1730588575721,11.15294377,165.77,165.72,21.1198]
[1730588575919,3.58835418,165.76,165.72,21.1198]
[1730588576118,11.15294377,165.77,165.72,21.1198]
[1730588576119,3.58835266,165.75,165.72,21.1198]
[1730588576309,3.58835266,165.74,165.72,32.27274377]
[1730588576512,17.18524377,165.78,165.72,32.27274377]
[1730588576725,8.05985264,165.77,165.72,32.27274377]
[1730588576919,3.58953772,165.76,165.72,32.27274377]
[1730588577135,3.58953772,165.75,165.72,32.27274377]
[1730588577331,3.58953772,165.74,165.72,32.27274377]
[1730588577533,3.58953772,165.73,165.72,32.27274377]
[1730588579734,17.18524377,165.78,165.72,32.27274377]
[1730588579950,3.59024554,165.73,165.72,32.27274377]
[1730588581746,11.15294377,165.79,165.72,32.27274377]
[1730588581943,8.06906451,165.78,165.72,32.27274377]
[1730588582159,11.15294377,165.79,165.73,11.15294377]
[1730588582160,8.06906451,165.77,165.73,11.15294377]
[1730588582389,11.15294377,165.79,165.73,11.15294377]
[1730588582670,3.59317703,165.76,165.74,21.1173]
[1730588582873,3.59324803,165.75,165.74,21.1173]
[1730588584087,3.59324803,165.75,165.74,15.0838]
[1730588586082,8.0756867,165.75,165.73,6.0339]
[1730588586375,3.59324803,165.74,165.73,6.0339]
[1730588586884,8.0759541,165.74,165.73,6.0339]
[1730588587206,8.0759541,165.74,165.72,21.1198]
[1730588587392,3.59324803,165.73,165.72,21.1198]
[1730588588670,3.59324803,165.73,165.72,15.0856]
[1730588588877,8.07823989,165.73,165.72,15.0856]
[1730588590080,3.59324803,165.73,165.72,15.0856]
[1730588590276,8.0810213,165.73,165.72,15.0856]
[1730588593768,8.08280945,165.73,165.72,15.0856]
[1730588593980,8.08280945,165.73,165.71,6.0346]
[1730588593981,20.0,165.72,165.7,0.304729]
[1730588594188,19.24067264,165.71,165.7,0.304729]
[1730588594385,19.23959853,165.71,165.7,0.304729]
[1730588595338,43.01648253,165.71,165.7,0.304729]
[1730588595979,49.05108253,165.71,165.7,0.304729]
[1730588596184,69.05108253,165.71,165.7,0.304729]
[1730588597762,65.45517318,165.71,165.7,0.304729]
[1730588597966,69.04081556,165.71,165.7,0.304729]
[1730588601494,60.96442777,165.71,165.7,0.304729]
[1730588601786,69.0225664,165.71,165.7,0.304729]
[1730588601971,73.50010761,165.71,165.7,0.304729]
[1730588602173,73.60010761,165.71,165.7,0.304729]
[1730588603363,0.1,165.7,165.62,0.304729]
[1730588603561,11.15294377,165.64,165.62,0.304729]
[1730588605937,11.15294377,165.63,165.62,0.304729]
[1730588606450,34.92982777,165.63,165.62,0.304729]
[1730588607141,54.92982777,165.63,165.62,0.304729]
[1730588607340,61.06732777,165.63,165.62,0.304729]
[1730588607540,65.53321467,165.63,165.62,0.304729]
[1730588607849,69.20442391,165.63,165.62,0.304729]
[1730588608235,69.20442391,165.63,165.54,15.406029]
[1730588608236,23.776884,165.56,165.54,0.304729]
[1730588608445,20.2034,165.58,165.54,0.304729]
[1730588608446,31.15294377,165.55,165.54,0.304729]
[1730588608753,11.15294377,165.55,165.54,0.304729]
[1730588608955,20.0,165.61,165.54,6.345429]
[1730588609152,20.0,165.59,165.54,6.345429]
[1730588609356,20.0,165.59,165.54,0.304729]
[1730588609541,20.0,165.59,165.54,6.345529]
[1730588610241,11.15294377,165.57,165.54,6.345529]
[1730588612064,11.15294377,165.58,165.54,6.345529]
[1730588612636,11.15294377,165.58,165.54,21.447529]
[1730588613058,11.15294377,165.59,165.54,21.447529]
[1730588614141,11.15294377,165.58,165.54,21.447529]
[1730588616167,11.15294377,165.59,165.54,21.447529]
[1730588616564,26.0383,165.61,165.54,21.447529]
[1730588616757,11.15294377,165.57,165.54,21.447529]
[1730588617075,11.15294377,165.58,165.54,21.447529]
[1730588620660,11.15294377,165.59,165.54,21.447529]
[1730588621878,11.15294377,165.55,165.54,0.304729]
[1730588629692,40.97022777,165.55,165.54,0.304729]
[1730588629867,37.19334377,165.55,165.54,0.304729]
[1730588631284,17.19234377,165.58,165.54,6.345529]
[1730588631462,11.15294377,165.57,165.54,0.304729]
[1730588631663,17.19234377,165.58,165.54,0.304729]
[1730588632672,11.15294377,165.57,165.54,0.304729]
[1730588636587,11.15294377,165.56,165.54,0.304729]
[1730588638894,11.15294377,165.55,165.54,0.304729]
[1730588642204,17.19334377,165.55,165.54,0.304729]
[1730588642400,40.76450377,165.55,165.54,0.304729]
[1730588642913,37.19334377,165.55,165.54,0.304729]
[1730588643224,11.15294377,165.55,165.54,0.304729]
[1730588644736,60.56517508,165.6,165.54,0.304729]
[1730588644737,11.15294377,165.56,165.54,0.304729]
[1730588645936,14.73052473,165.55,165.54,0.304729]
[1730588646143,14.73027515,165.55,165.54,0.304729]
[1730588647840,58.50715915,165.55,165.54,0.304729]
[1730588648042,64.54755915,165.55,165.54,0.304729]
[1730588649833,64.54755915,165.55,165.47,6.043]
[1730588649834,43.776884,165.54,165.46,0.304729]
[1730588650043,11.15294377,165.5,165.46,0.304729]
[1730588651349,11.15294377,165.5,165.46,6.348329]
[1730588652314,17.19494377,165.51,165.46,6.348329]
[1730588652527,3.58987433,165.5,165.46,6.348329]
[1730588652726,3.58987433,165.49,165.46,6.348329]
[1730588652937,11.15294377,165.5,165.46,6.348329]
[1730588654138,11.15294377,165.51,165.46,6.348329]
[1730588654338,3.58899424,165.5,165.46,6.348329]
[1730588654639,11.15294377,165.51,165.46,6.348329]
[1730588655334,17.19494377,165.51,165.46,6.348329]
[1730588655543,11.15294377,165.51,165.46,21.457629]
[1730588656196,17.19454377,165.52,165.46,32.61057277]
[1730588656623,20.0,165.51,165.46,32.61057277]
[1730588656921,20.0,165.51,165.46,21.457629]
[1730588657306,20.0,165.51,165.46,32.61057277]
[1730588657709,20.0,165.51,165.46,21.457629]
[1730588659240,11.15294377,165.48,165.46,0.304729]
[1730588659611,11.15294377,165.49,165.46,0.304729]
[1730588660204,11.15294377,165.48,165.46,0.304729]
[1730588660411,11.15294377,165.49,165.46,6.348329]
[1730588660608,11.15294377,165.5,165.46,0.304729]
[1730588661624,20.0,165.51,165.46,32.61037277]
[1730588661926,17.19354377,165.55,165.49,11.15294377]
[1730588662119,4.47178669,165.54,165.49,11.15294377]
[1730588662330,17.19354377,165.55,165.49,11.15294377]
[1730588662801,11.15294377,165.54,165.49,15.1063]
[1730588663005,11.15294377,165.53,165.49,15.1063]
[1730588664836,17.19414377,165.53,165.49,15.1063]
[1730588665205,15.2368,165.58,165.5,11.15294377]
[1730588665206,6.0401,165.56,165.5,11.15294377]
[1730588665512,4.47905665,165.55,165.5,11.15294377]
[1730588665717,17.19304377,165.56,165.5,11.15294377]
[1730588665929,4.48193341,165.55,165.5,11.15294377]
[1730588666129,17.19304377,165.56,165.5,11.15294377]
[1730588666336,4.48217364,165.55,165.51,11.15294377]
[1730588666510,6.0401,165.56,165.51,11.15294377]
[1730588666710,4.48433348,165.55,165.51,11.15294377]
[1730588666928,6.0401,165.56,165.51,11.15294377]
[1730588667130,4.48426397,165.55,165.51,11.15294377]
[1730588667327,11.15294377,165.58,165.52,11.15294377]
[1730588667512,4.48557869,165.57,165.53,11.15294377]
[1730588667711,4.48557869,165.56,165.53,11.15294377]
[1730588667927,11.15294377,165.59,165.53,11.15294377]
[1730588668129,4.48586947,165.58,165.53,11.15294377]
[1730588668341,4.48586947,165.57,165.54,6.0408]
[1730588668517,17.19194377,165.59,165.54,6.0408]
[1730588668839,35.63904549,165.58,165.54,6.0408]
[1730588669142,4.48694485,165.57,165.54,6.0408]
[1730588670239,31.15294377,165.58,165.54,6.0408]
[1730588671636,20.0,165.6,165.56,11.15294377]
[1730588671830,20.0,165.6,165.55,11.15294377]
[1730588672018,4.48700704,165.57,165.56,11.15294377]
[1730588672435,17.19094377,165.62,165.56,11.15294377]
[1730588673028,17.19094377,165.62,165.56,17.19264377]
[1730588673234,11.15294377,165.62,165.57,11.15294377]
[1730588673539,11.15294377,165.63,165.58,11.15294377]
[1730588673715,11.15294377,165.62,165.57,11.15294377]
[1730588674225,20.0,165.62,165.57,11.15294377]
[1730588674537,11.15294377,165.58,165.51,26.74494377]
[1730588674744,11.15294377,165.56,165.52,6.0415]
[1730588675142,11.15294377,165.56,165.52,21.1454]
[1730588677243,11.15294377,165.56,165.51,21.6338]
[1730588677426,11.15294377,165.55,165.51,15.592]
[1730588677942,11.15294377,165.56,165.51,21.6337]
[1730588678124,11.15294377,165.57,165.51,32.78664377]
[1730588678329,11.15294377,165.56,165.51,32.78664377]
[1730588678654,11.15294377,165.56,165.51,36.7385]
[1730588679025,11.15294377,165.55,165.51,36.7385]
[1730588679620,11.15294377,165.53,165.51,30.6968]
[1730588679823,11.15294377,165.54,165.51,30.6968]
[1730588680322,4.48966028,165.53,165.51,30.6968]
[1730588680645,11.15294377,165.54,165.51,36.7387]
[1730588681249,11.15294377,165.53,165.51,15.592]
[1730588681422,11.15294377,165.54,165.51,15.592]
[1730588681749,4.49080187,165.53,165.51,15.592]
[1730588682038,15.64410349,165.52,165.49,21.1492]
[1730588682225,11.15294377,165.52,165.49,21.1492]
[1730588682627,11.15294377,165.52,165.49,15.1066]
[1730588682822,11.15294377,165.51,165.46,21.457529]
[1730588684239,11.15294377,165.52,165.46,32.61047277]
[1730588684448,4.49092171,165.51,165.46,32.61047277]
[1730588684637,11.15294377,165.51,165.46,21.457529]
[1730588684947,4.49079853,165.5,165.46,21.457529]
[1730588685154,11.15294377,165.51,165.46,21.457529]
[1730588686039,11.15294377,165.52,165.46,32.61047277]
[1730588686241,4.49128003,165.51,165.46,32.61047277]
[1730588686439,4.49080241,165.5,165.46,21.457529]
[1730588686651,11.15294377,165.51,165.46,21.457529]
[1730588687254,11.15294377,165.48,165.46,0.304729]
[1730588687848,44.61177508,165.52,165.46,0.304729]
[1730588687849,15.64298589,165.47,165.46,0.304729]
[1730588688251,35.64298589,165.47,165.46,0.304729]
[1730588689144,41.68628589,165.47,165.46,0.304729]
[1730588689346,4.49004212,165.47,165.46,0.304729]
[1730588689551,4.48694865,165.47,165.46,0.304729]
[1730588690252,17.19554377,165.49,165.46,0.304729]
[1730588690463,22.6685,165.51,165.46,0.304729]
[1730588690464,4.48659363,165.48,165.46,0.304729]
[1730588690667,11.15294377,165.49,165.46,0.304729]
[1730588690858,11.15294377,165.47,165.46,0.304729]
[1730588691060,4.48642982,165.47,165.46,0.304729]
[1730588695170,15.63937359,165.47,165.46,0.304729]
[1730588695352,4.48642982,165.47,165.46,0.304729]
[1730588697073,15.63937359,165.47,165.46,0.304729]
[1730588699449,15.63185192,165.47,165.46,0.304729]
[1730588699655,4.47890815,165.47,165.46,0.304729]
[1730588700862,11.15294377,165.5,165.46,6.348429]
[1730588701058,4.47742664,165.49,165.46,6.348429]
[1730588701266,4.47742664,165.48,165.46,6.348429]
[1730588701460,11.15294377,165.5,165.46,6.348429]
[1730588701667,6.0422,165.51,165.46,21.457729]
[1730588701668,4.47763352,165.49,165.46,21.457729]
[1730588701863,31.15294377,165.52,165.46,32.61067277]
[1730588702066,15.63091014,165.51,165.46,32.61067277]
[1730588702259,4.47796637,165.5,165.46,32.61067277]
[1730588702471,4.47796637,165.5,165.46,21.457729]
[1730588702856,4.47796637,165.5,165.46,32.61067277]
[1730588703275,11.15294377,165.52,165.46,32.61067277]
[1730588703480,4.47867121,165.51,165.46,32.61067277]
[1730588703675,11.15294377,165.52,165.46,32.61067277]
[1730588703676,4.47867121,165.5,165.46,32.61067277]
[1730588703894,11.15294377,165.52,165.46,32.61067277]
[1730588704059,4.47863989,165.51,165.46,32.61067277]
[1730588704259,4.47863989,165.5,165.46,32.61067277]
[1730588704482,11.15294377,165.53,165.47,11.15294377]
[1730588704682,0.2,165.59,165.49,11.15294377]
[1730588704683,4.47910507,165.52,165.49,11.15294377]
[1730588704867,11.15294377,165.54,165.49,11.15294377]
[1730588705065,4.47956587,165.53,165.49,11.15294377]
[1730588705365,11.15294377,165.56,165.51,11.15294377]
[1730588705780,4.48039422,165.55,165.52,6.0415]
[1730588705983,4.48039422,165.54,165.52,6.0415]
[1730588706179,4.48039422,165.53,165.52,6.0415]
[1730588706386,4.48039422,165.53,165.52,17.19444377]
[1730588706567,11.15294377,165.57,165.52,17.19444377]
[1730588706568,11.15294377,165.57,165.52,32.29834377]
[1730588706774,4.48071181,165.56,165.52,32.29834377]
[1730588706966,4.48071181,165.55,165.52,32.29834377]
[1730588707279,11.15294377,165.57,165.52,32.29834377]
[1730588707486,15.63365526,165.56,165.52,21.1454]
[1730588707696,4.48071149,165.55,165.52,21.1454]
[1730588707863,11.15294377,165.56,165.52,21.1454]
[1730588708196,11.15294377,165.53,165.47,15.4597]
[1730588708482,24.48057802,165.55,165.47,15.4597]
[1730588708483,11.15294377,165.51,165.47,15.4597]
[1730588709482,20.0,165.55,165.47,15.4597]
[1730588709483,11.15294377,165.52,165.47,15.4597]
[1730588709681,20.0,165.56,165.47,26.61264377]
[1730588709682,4.47968987,165.51,165.47,26.61264377]
[1730588709981,11.15294377,165.55,165.49,11.15294377]
[1730588710286,4.47997232,165.54,165.49,11.15294377]
[1730588710591,4.47997232,165.53,165.49,11.15294377]
[1730588710788,4.47997232,165.52,165.49,11.15294377]
[1730588710960,11.15294377,165.55,165.49,11.15294377]
[1730588711296,15.63300292,165.54,165.49,11.15294377]
[1730588711463,4.48005915,165.53,165.49,11.15294377]
[1730588711663,4.48005915,165.52,165.49,11.15294377]
[1730588711964,4.47990179,165.51,165.49,11.15294377]
[1730588712164,11.15294377,165.54,165.49,11.15294377]
[1730588712364,4.47965488,165.53,165.49,11.15294377]
[1730588712573,11.15294377,165.54,165.49,11.15294377]
[1730588712779,4.47986144,165.53,165.49,11.15294377]
[1730588712979,4.47986144,165.52,165.49,11.15294377]
[1730588713165,11.15294377,165.54,165.49,11.15294377]
[1730588713471,4.47998285,165.53,165.49,11.15294377]
[1730588713672,4.47998285,165.52,165.49,11.15294377]
[1730588713966,11.15294377,165.52,165.47,15.4597]
[1730588714477,11.15294377,165.52,165.47,26.61264377]
[1730588714987,11.15294377,165.53,165.47,26.61264377]
[1730588715299,4.48002117,165.52,165.47,26.61264377]
[1730588715590,11.15294377,165.54,165.48,11.15294377]
[1730588715896,4.48026974,165.53,165.5,11.15294377]
[1730588716075,11.15294377,165.56,165.5,11.15294377]
[1730588716268,4.48028219,165.55,165.51,11.15294377]
[1730588716469,4.48028219,165.54,165.51,11.15294377]
[1730588716784,11.15294377,165.56,165.48,23.876884]
[1730588716785,4.48028219,165.53,165.5,11.15294377]
[1730588716970,11.15294377,165.56,165.5,11.15294377]
[1730588717171,4.48045337,165.55,165.5,11.15294377]
[1730588717387,4.48045337,165.54,165.5,11.15294377]
[1730588717573,4.48045337,165.53,165.5,11.15294377]
[1730588717774,11.15294377,165.56,165.5,11.15294377]
[1730588718076,4.48038694,165.55,165.5,11.15294377]
[1730588718273,4.48038694,165.54,165.5,11.15294377]
[1730588718468,4.48038694,165.53,165.5,11.15294377]
[1730588718683,11.15294377,165.55,165.5,11.15294377]
[1730588718883,4.48020101,165.54,165.5,11.15294377]
[1730588719174,11.15294377,165.55,165.47,30.5681]
[1730588719175,11.15294377,165.52,165.47,15.4597]
[1730588719474,4.48020101,165.51,165.47,15.4597]
[1730588719783,4.48020101,165.5,165.47,15.4597]
[1730588719981,11.15294377,165.52,165.47,15.4597]
[1730588720186,11.15294377,165.5,165.47,15.4597]
[1730588720484,11.15294377,165.51,165.47,15.4597]
[1730588720688,6.0412,165.53,165.47,15.4597]
[1730588720689,15.63239402,165.5,165.47,15.4597]
[1730588720890,11.15294377,165.5,165.46,0.304729]
[1730588721095,17.19544377,165.5,165.46,0.304729]
[1730588723502,4.47882766,165.49,165.46,0.304729]
[1730588723794,17.19544377,165.5,165.46,0.304729]
[1730588723972,4.47883713,165.49,165.46,0.304729]
[1730588724172,11.15294377,165.49,165.46,0.304729]
[1730588724390,17.19554377,165.49,165.46,0.304729]
[1730588724993,15.63153489,165.48,165.46,0.304729]
[1730588725189,11.15294377,165.48,165.46,0.304729]
[1730588725775,6.0426,165.49,165.46,0.304729]
[1730588725776,11.15294377,165.47,165.46,0.304729]
[1730588725978,35.63054887,165.47,165.46,0.304729]
[1730588726404,35.6303653,165.47,165.46,0.304729]
[1730588726697,41.6736653,165.47,165.46,0.304729]
[1730588728291,20.0,165.45,165.37,0.304729]
[1730588728501,17.19934377,165.39,165.37,0.304729]
[1730588728704,6.0464,165.39,165.37,0.304729]
[1730588730790,11.15294377,165.41,165.37,0.304729]
[1730588730991,11.15294377,165.41,165.35,10.95767277]
[1730588732077,11.15294377,165.39,165.34,11.15294377]
[1730588732396,11.15294377,165.39,165.33,11.15294377]
[1730588732586,11.15294377,165.39,165.34,11.15294377]
[1730588733689,17.19814377,165.42,165.36,11.15294377]
[1730588733894,11.15294377,165.41,165.36,11.15294377]
[1730588734079,11.15294377,165.41,165.35,11.15294377]
[1730588734476,11.15294377,165.41,165.36,11.15294377]
[1730588734679,6.0459,165.4,165.37,11.15294377]
[1730588734989,6.0459,165.4,165.36,11.15294377]
[1730588736102,6.0459,165.4,165.36,10.65294377]
[1730588738302,11.15294377,165.42,165.37,11.15294377]
[1730588738611,6.0456,165.41,165.37,11.15294377]
[1730588738806,11.15294377,165.44,165.38,11.15294377]
[1730588739014,6.0448,165.43,165.38,11.15294377]
[1730588739330,17.19774377,165.43,165.38,11.15294377]
[1730588740322,6.0437,165.46,165.41,11.15294377]
[1730588740532,6.0437,165.46,165.42,11.15294377]
[1730588743212,6.0437,165.46,165.43,11.15294377]
[1730588743422,6.0437,165.46,165.42,11.15294377]
[1730588744607,6.0433,165.47,165.43,11.15294377]
[1730588746209,20.0,165.48,165.43,11.15294377]
[1730588746508,26.043,165.48,165.43,11.15294377]
[1730588747219,37.19594377,165.48,165.43,11.15294377]
[1730588747394,17.19594377,165.48,165.43,11.15294377]
[1730588747592,6.0427,165.49,165.45,11.15294377]
[1730588747997,6.0427,165.49,165.46,11.15294377]
[1730588748513,6.0427,165.49,165.45,11.15294377]
[1730588748818,6.0422,165.5,165.45,11.15294377]
[1730588749012,4.4731677,165.49,165.45,11.15294377]
[1730588749218,6.0422,165.5,165.45,11.15294377]
[1730588749592,4.47316812,165.49,165.45,11.15294377]
[1730588749795,6.0422,165.5,165.45,11.15294377]
[1730588750193,11.15294377,165.46,165.39,11.15294377]
[1730588750418,20.0,165.48,165.4,11.15294377]
[1730588750616,11.15294377,165.46,165.4,11.15294377]
[1730588750818,6.0441,165.45,165.4,11.15294377]
[1730588750997,6.0441,165.45,165.41,11.15294377]
[1730588752115,11.15294377,165.47,165.41,11.15294377]
[1730588752309,6.0436,165.47,165.42,11.15294377]
[1730588754020,6.0436,165.47,165.42,17.19804377]
[1730588754903,6.043,165.48,165.43,11.15294377]
[1730588756122,6.043,165.48,165.43,17.19764377]
[1730588758426,11.15294377,165.5,165.44,11.15294377]
[1730588760305,11.15294377,165.53,165.47,11.15294377]
[1730588760510,4.47344138,165.52,165.47,11.15294377]
[1730588760809,11.15294377,165.53,165.48,11.15294377]
[1730588761122,4.47320173,165.52,165.48,11.15294377]
[1730588761334,11.15294377,165.54,165.49,11.15294377]
[1730588761655,4.47329933,165.53,165.49,11.15294377]
[1730588761851,17.19344377,165.55,165.49,11.15294377]
[1730588762054,4.47309535,165.54,165.49,27.54724377]
[1730588762229,4.47309535,165.53,165.49,33.58974377]
[1730588762547,17.19344377,165.55,165.49,33.58974377]
[1730588763356,15.6256575,165.54,165.49,22.4368]
[1730588763553,11.15294377,165.54,165.49,22.4368]
[1730588764532,17.19384377,165.54,165.49,22.4368]
[1730588766028,11.15294377,165.53,165.49,22.4368]
[1730588769526,11.15294377,165.54,165.49,22.4368]
[1730588773735,11.15294377,165.54,165.49,37.5434]
[1730588775818,11.15294377,165.54,165.49,48.69634377]
[1730588780219,11.15294377,165.54,165.49,37.5434]
[1730588780531,11.15294377,165.52,165.47,17.19594377]
[1730588780834,11.15294377,165.5,165.47,6.043]
[1730588781714,11.15294377,165.5,165.46,21.1528]
[1730588782118,11.15294377,165.51,165.46,21.1528]
[1730588784619,17.19504377,165.51,165.46,21.1528]
[1730588784824,11.15294377,165.5,165.46,15.1091]
[1730588786138,17.19534377,165.5,165.46,15.1091]